Workbook

Sheet 高铁
A1: 城市 | B1: 场站 | C1: 媒体位置 | D1: 频次 | E1: 发布总量(组) | F1: 购买周期 | G1: 刊例价(元) | H1: 刊例价单位 | I1: 折扣 | J1: 媒体总净价(元) | K1: 首次安装费(元/次) | L1: 总制作费(元) | M1: 总净价(元) | N1: 总净价单位 | O1: 成本折扣 | P1: 成本 | Q1: 供应商 | R1: 客流量/人次 | S1: 总曝光/人次 | T1: SOV | U1: CPM(元) | V1: 对应比稿
A2: 北京 | B2: 北京南站 | C2: 候车大厅——中央主屏（西） | D2: 15秒/100次/天 | E2: 4块/组 | F2: 1个月 | G2: 2,400,000 | H2: 元/组/月 | I2: 30% | J2: =G2*I2 -> 720,000 | K2: 0 | L2: 0 | M2: =J2+L2 -> 720,000 | N2: 元/月 | O2: 15% | P2: =G2*O2 -> 360000 | Q2: 永达 | R2: 350,000 | S2: =R2*30 -> 10,500,000 | T2: 100.00% | U2: =J2/S2*1000 -> 68.57
A3: 北京 | B3: 北京南站 | C3: 出发层东西进站口中央通道 | D3: 15秒/380次/天 | E3: 4块/组 | F3: 4周 | G3: =558000*4 -> 2,232,000 | H3: 元/组/4周 | I3: 30% | J3: =G3*I3 -> 669,600 | K3: 0 | L3: 0 | M3: =J3+L3 -> 669,600 | N3: 元/4周 | O3: 20% | P3: =G3*O3 -> 446400 | Q3: 北京航铁钧达 | R3: 350,000 | S3: =R3*28 -> 9,800,000 | T3: 100.00% | U3: 68.33
A4: 北京 | B4: 北京南站 | C4: 到达层安检出口 | D4: 15秒/380次/天 | E4: 48块/组 | F4: 4周 | G4: =458000*4 -> 1,832,000 | H4: 元/组/4周 | I4: 30% | J4: 549,600 | K4: 0 | L4: 0 | M4: 549,600 | N4: 元/4周 | O4: 20% | P4: 366400 | Q4: 北京航铁钧达 | R4: 350,000 | S4: 9,800,000 | T4: 100.00% | U4: 56.08
A5: 北京 | B5: 北京南站 | C5: 出发层进站安检口 | D5: 15秒/300次/天 | E5: 8块/组 | F5: 4周 | G5: 1,788,000 | H5: 元/组/4周 | I5: 30% | J5: 536,400 | K5: 0 | L5: 0 | M5: 536,400 | N5: 元/4周 | O5: 22% | P5: 393360 | Q5: 韵洪 | R5: 350,000 | S5: 9,800,000 | T5: 100.00% | U5: 54.73
A6: 北京 | B6: 北京西站 | C6: 进站大厅 北一层进站检票口、北进站扶梯两侧 | D6: 15秒/100次/天 | E6: 3块/组 | F6: 1个月 | G6: 400,000 | H6: 元/组/月 | I6: 30% | J6: 120,000 | K6: 0 | L6: 0 | M6: 120,000 | N6: 元/月 | O6: 15% | P6: 60000 | Q6: 永达 | R6: 196,000 | S6: =R6*30 -> 5,880,000 | T6: 100.00% | U6: 20.41
A7: 北京 | B7: 北京西站 | C7: 候车大厅——2/4-11候车室上方 | D7: 15秒/100次/天 | E7: 9块/组 | F7: 1个月 | G7: 800,000 | H7: 元/组/月 | I7: 30% | J7: 240,000 | K7: 0 | L7: 0 | M7: 240,000 | N7: 元/月 | O7: 15% | P7: 120000 | Q7: 永达 | R7: 196,000 | S7: =R7*30 -> 5,880,000 | T7: 100.00% | U7: 40.82
A8: 北京 | B8: 北京丰台站 | C8: 北京丰台站候车室-独立刷屏 | D8: 15秒/195次/天 | E8: 38块/组 | F8: 4周 | G8: =238000*4 -> 952,000 | H8: 元/组/4周 | I8: 29% | J8: 276,080 | K8: 0 | L8: 0 | M8: 276,080 | N8: 元/4周 | O8: 12% | P8: 114240 | Q8: 兆讯 | R8: 42,913 | S8: 1,201,551 | T8: 100.00% | U8: 229.77
A9: 上海 | B9: 上海虹桥站 | C9: 候车大厅——中央主屏北侧 | D9: 15秒/100次/天 | E9: 2块/组 | F9: 1个月 | G9: 2,400,000 | H9: 元/组/月 | I9: 30% | J9: 720,000 | K9: 0 | L9: 0 | M9: 720,000 | N9: 元/月 | O9: 15% | P9: 360000 | Q9: 永达 | R9: 450,000 | S9: =R9*30 -> 13,500,000 | T9: 50.00% | U9: 53.33
A10: 上海 | B10: 上海虹桥站 | C10: 上海虹桥交通枢纽高铁到达出口处-横版LED | D10: 15秒180次/天 | E10: 2块/组 | F10: 4周 | G10: =300000*4 -> 1,200,000 | H10: 元/组/周 | I10: 40% | J10: 480,000 | K10: 0 | L10: 0 | M10: 480,000 | N10: 元/4周 | O10: 16% | P10: 192000 | Q10: 兆讯 | R10: 450,000 | S10: =R10*28 -> 12,600,000 | T10: 100.00% | U10: 38.10
A11: 广州 | B11: 广州南站 | C11: 出站大厅——进出站通道中央主屏 | D11: 15秒/100次/天 | E11: 8块/组 | F11: 1个月 | G11: 1,400,000 | H11: 元/组/月 | I11: 30% | J11: 420,000 | K11: 0 | L11: 0 | M11: 420,000 | N11: 元/月 | O11: 15% | P11: 210000 | Q11: 永达 | R11: 712,000 | S11: =R11*30 -> 21,360,000 | T11: =8/12 -> 66.67% | U11: 19.66
A12: 广州 | B12: 广州南站 | C12: 楼地铁换乘口(东一/东二/西一/西二) | D12: 15秒/240次/天 | E12: 26块/组 | F12: 4周 | G12: 1,320,000 | H12: 元/组/4周 | I12: 30% | J12: 396,000 | K12: 0 | L12: 0 | M12: 396,000 | N12: 元/4周 | O12: 22% | P12: 290400 | Q12: 韵洪 | R12: 712,000 | S12: =R12*28 -> 19,936,000 | T12: 100.00% | U12: 19.86
A13: 广州 | B13: 广州南站 | C13: 出发层检票口 | D13: 15秒/240次/天 | E13: 100面/组 | F13: 4周 | G13: 2,520,000 | H13: 元/组/4周 | I13: 30% | J13: 756,000 | K13: 0 | L13: 0 | M13: 756,000 | N13: 元/4周 | O13: 22% | P13: 554400 | Q13: 韵洪 | R13: 712,000 | S13: =R13*28 -> 19,936,000 | T13: 100.00% | U13: 37.92
A14: 广州 | B14: 广州南站 | C14: 广州南站候车室-独立刷屏 | D14: 15秒/195次/天 | E14: 56块/组 | F14: 4周 | G14: =398000*4 -> 1,592,000 | H14: 元/组/4周 | I14: 29% | J14: 461,680 | K14: 0 | L14: 0 | M14: 461,680 | N14: 元/4周 | O14: 12% | P14: 191040 | Q14: 兆讯 | R14: 712,000 | S14: =R14*28 -> 19,936,000 | T14: 100.00% | U14: 23.16
A15: 深圳 | B15: 深圳北站 | C15: 候车大厅——进站安检口+中央主屏 | D15: 15秒/100次/天 | E15: 8块/组 | F15: 1个月 | G15: 2,400,000 | H15: 元/组/月 | I15: 30% | J15: 720,000 | K15: 0 | L15: 0 | M15: 720,000 | N15: 元/月 | O15: 15% | P15: 360000 | Q15: 永达 | R15: 595,000 | S15: =R15*30 -> 17,850,000 | T15: =8/11 -> 72.73% | U15: 40.34
A16: 深圳 | B16: 深圳北站 | C16: 进站安检——东西进站安检口 | D16: 15秒/100次/天 | E16: 3块/组 | F16: 1个月 | G16: 1,000,000 | H16: 元/组/月 | I16: 30% | J16: 300,000 | K16: 0 | L16: 0 | M16: 300,000 | N16: 元/月 | O16: 15% | P16: 150000 | Q16: 永达 | R16: 595,000 | S16: =R16*30 -> 17,850,000 | T16: =3/11 -> 27.27% | U16: 16.81
A17: 深圳 | B17: 深圳北站 | C17: 出发层候车厅检票口 | D17: 15秒/240次/天 | E17: 76面/组 | F17: 4周 | G17: 2,280,000 | H17: 元/组/4周 | I17: 30% | J17: 684,000 | K17: 0 | L17: 0 | M17: 684,000 | N17: 元/4周 | O17: 22% | P17: 501600 | Q17: 韵洪 | R17: 595,000 | S17: =R17*28 -> 16,660,000 | T17: 100.00% | U17: 41.06
A18: 厦门 | B18: 厦门站 | C18: 厦门站候车室-独立刷屏 | D18: 15秒/195次/天 | E18: 20块/组 | F18: 4周 | G18: =92000*4 -> 368,000 | H18: 元/组/4周 | I18: 29% | J18: 106,720 | K18: 0 | L18: 0 | M18: 106,720 | N18: 元/4周 | O18: 12% | P18: 44160 | Q18: 兆讯 | R18: 23,633 | S18: =R18*28 -> 661,711 | T18: 100.00% | U18: 161.28
A19: 厦门 | B19: 厦门北站 | C19: 厦门北站候车室-独立刷屏 | D19: 15秒/195次/天 | E19: 39块/组 | F19: 4周 | G19: =168000*4 -> 672,000 | H19: 元/组/4周 | I19: 29% | J19: 194,880 | K19: 0 | L19: 0 | M19: 194,880 | N19: 元/4周 | O19: 12% | P19: 80640 | Q19: 兆讯 | R19: 115,000 | S19: =R19*28 -> 3,220,000 | T19: 100.00% | U19: 60.52
A20: 厦门 | B20: 厦门北站 | C20: 进站大厅——南北进站大厅 | D20: 15秒/100次/天 | E20: 2块/组 | F20: 1个月 | G20: 700,000 | H20: 元/组/月 | I20: 30% | J20: 210,000 | K20: 0 | L20: 0 | M20: 210,000 | N20: 元/月 | O20: 15% | P20: 105000 | Q20: 永达 | R20: 115,000 | S20: =R20*30 -> 3,450,000 | T20: =2/6 -> 33.33% | U20: 60.87
A21: 长沙 | B21: 长沙站 | C21: 长沙站候车室-独立刷屏 | D21: 15秒/195次/天 | E21: 16块/组 | F21: 4周 | G21: =68000*4 -> 272,000 | H21: 元/组/4周 | I21: 29% | J21: 78,880 | K21: 0 | L21: 0 | M21: 78,880 | N21: 元/4周 | O21: 12% | P21: 32640 | Q21: 兆讯 | R21: 64,684 | S21: =R21*28 -> 1,811,166 | T21: 100.00% | U21: 43.55
A22: 长沙 | B22: 长沙南站 | C22: 长沙南站候车室-独立刷屏 | D22: 15秒/195次/天 | E22: 40块/组 | F22: 4周 | G22: =208000*4 -> 832,000 | H22: 元/组/4周 | I22: 29% | J22: 241,280 | K22: 0 | L22: 0 | M22: 241,280 | N22: 元/4周 | O22: 12% | P22: 99840 | Q22: 兆讯 | R22: 267,000 | S22: =R22*28 -> 7,476,000 | T22: 100.00% | U22: 32.27
A23: 长沙 | B23: 长沙南站 | C23: 出站大厅——西广场出站大厅 | D23: 15秒/100次/天 | E23: 2块/组 | F23: 1个月 | G23: 300,000 | H23: 元/组/月 | I23: 30% | J23: 90,000 | K23: 0 | L23: 0 | M23: 90,000 | N23: 元/月 | O23: 15% | P23: 45000 | Q23: 永达 | R23: 267,000 | S23: =R23*30 -> 8,010,000 | T23: 100.00% | U23: 11.24
A24: 成都 | B24: 成都东站 | C24: 候车大厅——中央主屏（北） | D24: 15秒/100次/天 | E24: 2块/组 | F24: 1个月 | G24: 1,600,000 | H24: 元/组/月 | I24: 30% | J24: 480,000 | K24: 0 | L24: 0 | M24: 480,000 | N24: 元/月 | O24: 15% | P24: 240000 | Q24: 永达 | R24: 263,300 | S24: =R24*30 -> 7,899,000 | T24: =2/5 -> 40.00% | U24: 60.77
A25: 成都 | B25: 成都东站 | C25: 进站大厅——西进站大厅 | D25: 15秒/100次/天 | E25: 1块/组 | F25: 1个月 | G25: 600,000 | H25: 元/组/月 | I25: 30% | J25: 180,000 | K25: 0 | L25: 0 | M25: 180,000 | N25: 元/月 | O25: 15% | P25: 90000 | Q25: 永达 | R25: 263,000 | S25: =R25*30 -> 7,890,000 | T25: =1/5 -> 20.00% | U25: 22.81
A26: 成都 | B26: 成都西站 | C26: 成都西站候车室-独立刷屏 | D26: 15秒/195次/天 | E26: 6块/组 | F26: 4周 | G26: =92000*4 -> 368,000 | H26: 元/组/4周 | I26: 29% | J26: 106,720 | K26: 0 | L26: 0 | M26: 106,720 | N26: 元/4周 | O26: 12% | P26: 44160 | Q26: 兆讯 | R26: 22,376 | S26: =R26*28 -> 626,523 | T26: 100.00% | U26: 170.34
A27: 重庆 | B27: 重庆西站 | C27: 候车大厅——中央主屏北侧 | D27: 15秒/100次/天 | E27: 2块/组 | F27: 1个月 | G27: 800,000 | H27: 元/组/月 | I27: 30% | J27: 240,000 | K27: 0 | L27: 0 | M27: 240,000 | N27: 元/月 | O27: 15% | P27: 120000 | Q27: 永达 | R27: 71,000 | S27: =R27*30 -> 2,130,000 | T27: 50.00% | U27: 112.68
A28: 重庆 | B28: 重庆北站 | C28: 候车大厅——中央主屏北侧 | D28: 15秒/100次/天 | E28: 2块/组 | F28: 1个月 | G28: 1,100,000 | H28: 元/组/月 | I28: 30% | J28: 330,000 | K28: 0 | L28: 0 | M28: 330,000 | N28: 元/月 | O28: 15% | P28: 165000 | Q28: 永达 | R28: 147,000 | S28: =R28*30 -> 4,410,000 | T28: 100.00% | U28: 74.83
A29: 重庆 | B29: 重庆北站 | C29: 出站通道——通道中央双面吊挂屏 | D29: 15秒/100次/天 | E29: 24面/组 | F29: 1个月 | G29: 1,400,000 | H29: 元/组/月 | I29: 30% | J29: 420,000 | K29: 0 | L29: 0 | M29: 420,000 | N29: 元/月 | O29: 15% | P29: 210000 | Q29: 永达 | R29: 147,000 | S29: =R29*30 -> 4,410,000 | T29: 100.00% | U29: 95.24
A30: 重庆 | B30: 重庆北站 | C30: 出发层候车厅检票口 | D30: 15秒/220次/天 | E30: 36面/组 | F30: 4周 | G30: 1,560,000 | H30: 元/组/4周 | I30: 30% | J30: 468,000 | K30: 0 | L30: 0 | M30: 468,000 | N30: 元/4周 | O30: 22% | P30: 343200 | Q30: 韵洪 | R30: 147,000 | S30: =R30*28 -> 4,116,000 | T30: 100.00% | U30: 113.70
A31: 南京 | B31: 南京南站 | C31: 进站+候车—— 候车大厅南、北两侧，南进站大厅 | D31: 15秒/100次/天 | E31: 6块/组 | F31: 1个月 | G31: 2,400,000 | H31: 元/组/月 | I31: 30% | J31: 720,000 | K31: 0 | L31: 0 | M31: 720,000 | N31: 元/月 | O31: 15% | P31: 360000 | Q31: 永达 | R31: 306,000 | S31: =R31*30 -> 9,180,000 | T31: 100.00% | U31: 78.43
A32: 南京 | B32: 南京南站 | C32: 进站安检口 | D32: 15秒/300次/天 | E32: 10块/组 | F32: 4周 | G32: 1,968,000 | H32: 元/组/4周 | I32: 30% | J32: 590,400 | K32: 0 | L32: 0 | M32: 590,400 | N32: 元/4周 | O32: 22% | P32: 432960 | Q32: 韵洪 | R32: 306,000 | S32: 8,568,000 | T32: 100.00% | U32: 68.91
A33: 南京 | B33: 南京站 | C33: 进站安检口 | D33: 15秒/300次/天 | E33: 6块/组 | F33: 4周 | G33: 648,000 | H33: 元/组/4周 | I33: 30% | J33: 194,400 | K33: 0 | L33: 0 | M33: 194,400 | N33: 元/4周 | O33: 22% | P33: 142560 | Q33: 韵洪 | R33: 120,000 | S33: 3,360,000 | T33: 100.00% | U33: 57.86
A34: 南京 | B34: 南京站 | C34: 南京站候车室-独立刷屏 | D34: 15秒/195次/天 | E34: 19块/组 | F34: 4周 | G34: =168000*4 -> 672,000 | H34: 元/组/4周 | I34: 29% | J34: 194,880 | K34: 0 | L34: 0 | M34: 194,880 | N34: 元/4周 | O34: 12% | P34: 80640 | Q34: 兆讯 | R34: 120,000 | S34: 3,360,000 | T34: 100.00% | U34: 58.00
A35: 西安 | B35: 西安北站 | C35: 出站大厅——南出站口B1服务台 | D35: 15秒/100次/天 | E35: 1块/组 | F35: 1个月 | G35: 800,000 | H35: 元/组/月 | I35: 30% | J35: 240,000 | K35: 0 | L35: 0 | M35: 240,000 | N35: 元/月 | O35: 15% | P35: 120000 | Q35: 永达 | R35: 175,000 | S35: =R35*30 -> 5,250,000 | T35: 100.00% | U35: 45.71
A36: 西安 | B36: 西安北站 | C36: 候车大厅——中央主屏（西） | D36: 15秒/100次/天 | E36: 2块/组 | F36: 1个月 | G36: 2,100,000 | H36: 元/组/月 | I36: 30% | J36: 630,000 | K36: 0 | L36: 0 | M36: 630,000 | N36: 元/月 | O36: 15% | P36: 315000 | Q36: 永达 | R36: 175,000 | S36: =R36*30 -> 5,250,000 | T36: =2/6 -> 33.33% | U36: 120.00
A37: 西安 | B37: 西安站 | C37: 西安站候车室-独立刷屏 | D37: 15秒/195次/天 | E37: 40块/组 | F37: 4周 | G37: =168000*4 -> 672,000 | H37: 元/组/4周 | I37: 29% | J37: 194,880 | K37: 0 | L37: 0 | M37: 194,880 | N37: 元/4周 | O37: 12% | P37: 80640 | Q37: 兆讯 | R37: 70,867 | S37: =R37*28 -> 1,984,275 | T37: 100.00% | U37: 98.21
A38: 西安 | B38: 西安西站 | C38: 西安西站候车室-独立刷屏 | D38: 15秒/195次/天 | E38: 4块/组 | F38: 4周 | G38: =19000*4 -> 76,000 | H38: 元/组/4周 | I38: 29% | J38: 22,040 | K38: 0 | L38: 0 | M38: 22,040 | N38: 元/4周 | O38: 12% | P38: 9120 | Q38: 兆讯 | R38: 889 | S38: =R38*28 -> 24,889 | T38: 100.00% | U38: 885.52
A39: 苏州 | B39: 苏州北站 | C39: 候车大厅——一层大厅南、北两侧 | D39: 15秒/100次/天 | E39: 4块/组 | F39: 1个月 | G39: 900,000 | H39: 元/组/月 | I39: 30% | J39: 270,000 | K39: 0 | L39: 0 | M39: 270,000 | N39: 元/月 | O39: 15% | P39: 135000 | Q39: 永达 | R39: 80,000 | S39: =R39*30 -> 2,400,000 | T39: 100.00% | U39: 112.50
A40: 苏州 | B40: 苏州北站 | C40: 苏州北站候车室-独立刷屏 | D40: 15秒/195次/天 | E40: 6块/组 | F40: 4周 | G40: =92000*4 -> 368,000 | H40: 元/组/4周 | I40: 29% | J40: 106,720 | K40: 0 | L40: 0 | M40: 106,720 | N40: 元/4周 | O40: 12% | P40: 44160 | Q40: 兆讯 | R40: 80,000 | S40: =R40*28 -> 2,240,000 | T40: 100.00% | U40: 47.64
A41: 苏州 | B41: 苏州站 | C41: 苏州站候车室-独立刷屏 | D41: 15秒/195次/天 | E41: 15块/组 | F41: 4周 | G41: =168000*4 -> 672,000 | H41: 元/组/4周 | I41: 29% | J41: 194,880 | K41: 0 | L41: 0 | M41: 194,880 | N41: 元/4周 | O41: 12% | P41: 80640 | Q41: 兆讯 | R41: 150,000 | S41: =R41*28 -> 4,200,000 | T41: 100.00% | U41: 46.40
A42: 苏州 | B42: 苏州站 | C42: 进站安检口 | D42: 15秒/300次/天 | E42: 4块/组 | F42: 4周 | G42: 948,000 | H42: 元/组/4周 | I42: 30% | J42: 284,400 | K42: 0 | L42: 0 | M42: 284,400 | N42: 元/4周 | O42: 22% | P42: 208560 | Q42: 韵洪 | R42: 150,000 | S42: =R42*28 -> 4,200,000 | T42: 100.00% | U42: 67.71
A43: 杭州 | B43: 杭州东站 | C43: 出站通道——东西两侧 | D43: 15秒/100次/天 | E43: 2块/组 | F43: 1个月 | G43: 800,000 | H43: 元/组/月 | I43: 30% | J43: 240,000 | K43: 0 | L43: 0 | M43: 240,000 | N43: 元/月 | O43: 15% | P43: 120000 | Q43: 永达 | R43: 442,000 | S43: =R43*30 -> 13,260,000 | T43: 100.00% | U43: 18.10
A44: 杭州 | B44: 杭州东站 | C44: 进站安检口 | D44: 15秒/300次/天 | E44: 12块/组 | F44: 4周 | G44: 2,208,000 | H44: 元/组/4周 | I44: 30% | J44: 662,400 | K44: 0 | L44: 0 | M44: 662,400 | N44: 元/4周 | O44: 22% | P44: 485760 | Q44: 韵洪 | R44: 442,000 | S44: =R44*28 -> 12,376,000 | T44: 100.00% | U44: 53.52
A45: 杭州 | B45: 杭州站 | C45: 杭州站候车室-独立刷屏 | D45: 15秒/195次/天 | E45: 29块/组 | F45: 4周 | G45: =168000*4 -> 672,000 | H45: 元/组/4周 | I45: 29% | J45: 194,880 | K45: 0 | L45: 0 | M45: 194,880 | N45: 元/4周 | O45: 12% | P45: 80640 | Q45: 兆讯 | R45: 95,021 | S45: =R45*28 -> 2,660,576 | T45: 100.00% | U45: 73.25
A46: 天津 | B46: 天津西站 | C46: 出站通道——南、北两侧 进站大厅——南、北进站口 | D46: 15秒/100次/天 | E46: 6块/组 | F46: 1个月 | G46: 700,000 | H46: 元/组/月 | I46: 30% | J46: 210,000 | K46: 0 | L46: 0 | M46: 210,000 | N46: 元/月 | O46: 15% | P46: 105000 | Q46: 永达 | R46: 84,000 | S46: =R46*30 -> 2,520,000 | T46: =6/10 -> 60.00% | U46: 83.33
A47: 天津 | B47: 天津西站 | C47: 进站安检口 | D47: 15秒/300次/天 | E47: 5块/组 | F47: 4周 | G47: 1,308,000 | H47: 元/组/4周 | I47: 30% | J47: 392,400 | K47: 0 | L47: 0 | M47: 392,400 | N47: 元/4周 | O47: 22% | P47: 287760 | Q47: 韵洪 | R47: 84,000 | S47: =R47*28 -> 2,352,000 | T47: 100.00% | U47: 166.84
A48: 天津 | B48: 天津西站 | C48: 候车大厅中央通道 | D48: 15秒/380次/天 | E48: 30块/组 | F48: 4周 | G48: =308000*4 -> 1,232,000 | H48: 元/组/4周 | I48: 30% | J48: 369,600 | K48: 0 | L48: 0 | M48: 369,600 | N48: 元/4周 | O48: 20% | P48: 246400 | Q48: 北京航铁钧达 | R48: 84,000 | S48: =R48*28 -> 2,352,000 | T48: 100.00% | U48: 157.14
A49: 武汉 | B49: 武汉站 | C49: 出站大厅——东西出站大厅 | D49: 15秒/100次/天 | E49: 4块/组 | F49: 1个月 | G49: 500,000 | H49: 元/组/月 | I49: 30% | J49: 150,000 | K49: 0 | L49: 0 | M49: 150,000 | N49: 元/月 | O49: 15% | P49: 75000 | Q49: 永达 | R49: 192,000 | S49: =R49*30 -> 5,760,000 | T49: =4/5 -> 80.00% | U49: 26.04
A50: 武汉 | B50: 武汉站 | C50: 武汉站候车室-独立刷屏 | D50: 15秒/195次/天 | E50: 33块/组 | F50: 4周 | G50: =308000*4 -> 1,232,000 | H50: 元/组/4周 | I50: 29% | J50: 357,280 | K50: 0 | L50: 0 | M50: 357,280 | N50: 元/4周 | O50: 12% | P50: 147840 | Q50: 兆讯 | R50: 192,000 | S50: =R50*28 -> 5,376,000 | T50: 100.00% | U50: 66.46
